bitfinex-derivatives/quotes_SOLF0:USTF0_20250626
["timestamp","ask_amount","ask_price","bid_price","bid_amount"]
[1750911765162,11.26725785,145.33,145.31,6.8779]
[1750911765367,6.8766,145.34,145.31,6.8779]
[1750911765569,11.26819338,145.33,145.31,6.8779]
[1750911765763,6.8771,145.33,145.3,15.3855013]
[1750911766070,3.40947184,145.35,145.3,8.5072013]
[1750911766266,11.27368144,145.34,145.3,8.5072013]
[1750911766467,11.27368144,145.33,145.3,8.5072013]
[1750911766669,5.62549696,145.32,145.3,8.5072013]
[1750911766874,3.40947184,145.35,145.3,8.5072013]
[1750911767063,11.27871454,145.34,145.31,6.8776]
[1750911767259,11.27871454,145.33,145.3,8.5072013]
[1750911767458,10.28577184,145.35,145.31,8.5072013]
[1750911767659,11.27964381,145.34,145.31,8.5072013]
[1750911767966,5.62869769,145.33,145.31,8.5072013]
[1750911768168,3.40947184,145.35,145.32,6.8773]
[1750911768371,11.21614611,145.34,145.32,6.8773]
[1750911768566,42.2558,145.36,145.32,6.8773]
[1750911768867,11.21598409,145.35,145.33,6.877]
[1750911769069,11.21598409,145.34,145.33,6.877]
[1750911769472,5.5651149,145.34,145.33,6.877]
[1750911770365,35.38,145.36,145.34,6.8764]
[1750911770667,11.14621557,145.35,145.34,6.8764]
[1750911771070,35.4,145.44,145.39,6.8739]
[1750911771261,35.4,145.44,145.39,8.55123757]
[1750911771461,35.4,145.44,145.39,11.95628756]
[1750911771766,35.4,145.47,145.41,3.40504999]
[1750911771963,35.4,145.47,145.41,11.95628756]
[1750911772163,594.16,145.5,145.43,11.95628756]
[1750911772377,35.4,145.5,145.44,8.55123757]
[1750911772666,35.4,145.5,145.47,6.8701]
[1750911773964,42.2691,145.5,145.43,8.55123757]
[1750911774173,42.2691,145.5,145.44,3.39940503]
[1750911774472,42.2691,145.5,145.45,6.871]
[1750911774875,6.8695,145.49,145.45,6.871]
[1750911775373,35.4,145.5,145.46,6.8708]
[1750911775774,42.2694,145.5,145.46,6.8708]
[1750911776373,42.2694,145.5,145.44,3.39940503]
[1750911776374,35.4,145.5,145.44,3.39940503]
[1750911776777,35.4,145.5,145.47,6.8704]
[1750911776972,35.4,145.5,145.44,3.39940503]
[1750911777477,6.8697,145.49,145.45,6.871]
[1750911777975,42.2692,145.5,145.46,6.8709]
[1750911778976,6.8696,145.49,145.45,6.8712]
[1750911779176,38.79940503,145.5,145.43,4.8352]
[1750911779567,38.79940503,145.5,145.42,163.79940503]
[1750911779768,38.79940503,145.5,145.42,38.79940503]
[1750911779972,6.8703,145.48,145.44,6.8718]
[1750911780373,35.4,145.5,145.44,3.39940503]
[1750911780768,35.4,145.5,145.42,38.79940503]
[1750911780769,38.79940503,145.5,145.42,38.79940503]
[1750911781276,35.4,145.5,145.42,38.79940503]
[1750911781476,35.4,145.5,145.44,3.39940503]
[1750911781863,6.8696,145.49,145.46,6.8709]
[1750911782878,6.8696,145.49,145.45,6.8712]
[1750911784477,6.87,145.48,145.45,6.8712]
[1750911784872,6.87,145.48,145.44,6.8717]
[1750911785573,6.87,145.48,145.45,6.8713]
[1750911786072,40.6761581,145.5,145.43,3.40010163]
[1750911786282,40.6761581,145.5,145.45,3.40010163]
[1750911786283,35.4,145.5,145.45,3.40010163]
[1750911786774,35.4,145.5,145.47,6.87]
[1750911791083,42.2691,145.5,145.47,6.87]
[1750911791380,42.2691,145.5,145.46,6.8708]
[1750911793780,6.8696,145.49,145.46,6.8708]
[1750911795571,6.87,145.48,145.45,6.8714]
[1750911796276,38.80010163,145.5,145.43,125.0]
[1750911796479,5.28085804,145.49,145.41,128.40010163]
[1750911796982,6.8712,145.46,145.42,6.8727]
[1750911797185,3.40010163,145.48,145.42,6.8727]
[1750911797385,5.28085804,145.47,145.42,6.8727]
[1750911797782,35.28,145.46,145.42,6.8727]
[1750911797980,42.1513,145.46,145.42,6.8727]
[1750911798288,35.28,145.46,145.42,6.8727]
[1750911798683,40.56522769,145.46,145.42,6.8727]
[1750911798989,35.28,145.46,145.42,6.8727]
[1750911799191,40.56522769,145.46,145.42,6.8727]
[1750911799396,35.28,145.46,145.42,6.8727]
[1750911799688,6.8715,145.45,145.42,6.8727]
[1750911800088,35.28,145.46,145.43,6.8722]
[1750911801287,42.1512,145.46,145.43,6.8722]
[1750911801486,35.28,145.46,145.42,6.8726]
[1750911802580,6.8717,145.45,145.42,6.8726]
[1750911803492,12.15551482,145.45,145.41,6.8731]
[1750911803694,6.8719,145.44,145.41,6.8731]
[1750911803882,6.8719,145.44,145.4,6.8734]
[1750911804083,5.2674384,145.45,145.37,133.00690163]
[1750911804389,6.8727,145.43,145.37,133.00690163]
[1750911804888,6.8727,145.43,145.4,6.8737]
[1750911805987,3.40010163,145.44,145.37,2.238]
[1750911806289,5.27043058,145.43,145.37,3.40010163]
[1750911806488,12.14243058,145.44,145.37,3.40010163]
[1750911806690,6.872,145.44,145.37,3.40010163]
[1750911807090,6.872,145.44,145.39,6.8742]
[1750911807292,6.872,145.44,145.37,3.40010163]
[1750911807691,6.8723,145.43,145.39,6.8738]
[1750911808395,6.8723,145.43,145.4,6.8736]
[1750911810193,6.8723,145.43,145.39,6.874]
[1750911811790,6.873,145.42,145.39,6.874]
[1750911812890,35.28,145.42,145.38,6.8746]
[1750911813898,42.1529,145.42,145.38,6.8746]
[1750911814397,42.1529,145.42,145.39,6.8741]
[1750911815899,35.28,145.42,145.37,11.95416955]
[1750911816098,4.41677745,145.45,145.41,3.40293198]
[1750911816399,6.8702,145.48,145.43,3.40293198]
[1750911817600,6.8702,145.48,145.45,6.8713]
[1750911819794,6.8702,145.48,145.44,6.8717]
[1750911820098,6.8705,145.47,145.44,6.8717]
[1750911820796,6.8709,145.46,145.42,128.40036739]
[1750911821000,6.8709,145.46,145.42,125.0]
[1750911822104,6.8709,145.46,145.42,131.8724]
[1750911823001,6.8719,145.44,145.42,125.0]
[1750911823309,6.8719,145.44,145.41,6.8732]
[1750911823805,6.8719,145.44,145.4,6.8736]
[1750911824405,6.8728,145.42,145.39,6.8741]
[1750911824704,3.40036739,145.44,145.37,48.48263757]
[1750911825711,6.8731,145.42,145.39,6.8741]
[1750911826402,6.8731,145.42,145.38,6.8745]
[1750911827807,6.8731,145.42,145.39,6.8742]
[1750911828305,6.8731,145.42,145.38,6.8746]
[1750911828606,6.8731,145.42,145.37,48.48263757]
[1750911829607,6.8731,145.42,145.39,6.8742]
[1750911831603,3.40036739,145.44,145.37,48.48263757]
[1750911831912,35.28,145.45,145.38,11.95160496]
[1750911832210,42.1517,145.45,145.41,6.873]
[1750911832703,47.22440945,145.45,145.41,6.873]
[1750911832909,42.1517,145.45,145.41,6.873]
[1750911833109,47.22440945,145.45,145.41,6.873]
[1750911833410,42.1517,145.45,145.41,6.873]
[1750911833604,6.872,145.44,145.41,6.873]
[1750911835110,6.8724,145.43,145.39,6.8738]
[1750911836313,6.8724,145.43,145.4,6.8737]
[1750911840109,6.8724,145.43,145.39,6.8741]
[1750911840311,6.8728,145.42,145.39,6.8741]
[1750911841209,6.8733,145.41,145.38,15.42573757]
[1750911841413,6.8733,145.41,145.39,8.55123757]
[1750911842414,6.873,145.42,145.39,15.42523757]
[1750911844419,4.42519976,145.44,145.4,6.8737]
[1750911844622,5.08557058,145.43,145.4,6.8737]
[1750911844818,38.68036739,145.45,145.4,8.55123757]
[1750911845019,5.08654369,145.44,145.4,8.55123757]
[1750911845213,5.08654369,145.43,145.4,8.55123757]
[1750911845412,6.8728,145.43,145.4,8.55123757]
[1750911845617,6.8728,145.43,145.39,15.42523757]
[1750911845918,6.8728,145.43,145.4,8.55123757]
[1750911846318,35.28,145.45,145.4,8.55123757]
[1750911846615,5.08583349,145.44,145.4,8.55123757]
[1750911846922,42.1518,145.45,145.4,8.55123757]
[1750911847112,5.08689894,145.44,145.4,8.55123757]
[1750911847420,5.08689894,145.44,145.41,6.873]
[1750911847621,42.1518,145.45,145.41,6.873]
[1750911848013,5.08682132,145.44,145.41,6.873]
[1750911848212,42.1518,145.45,145.41,6.873]
[1750911848417,5.08689989,145.44,145.41,6.873]
[1750911848720,5.08695269,145.43,145.41,6.873]
[1750911849019,6.8719,145.44,145.41,6.873]
[1750911849209,5.08677027,145.43,145.41,6.873]
[1750911849412,6.8719,145.44,145.41,6.873]
[1750911849614,5.08695216,145.43,145.41,6.873]
[1750911849816,6.8719,145.44,145.41,6.873]
[1750911850017,5.09216261,145.43,145.39,8.55123757]
[1750911850320,5.09220959,145.42,145.39,8.55123757]
[1750911850620,6.8742,145.4,145.36,17.65373757]
[1750911851121,6.8742,145.4,145.37,6.875]
[1750911851523,38.44036739,145.41,145.37,6.875]
[1750911851726,5.09194989,145.4,145.37,6.875]
[1750911851923,38.44036739,145.41,145.36,10.77833757]
[1750911852127,5.09194989,145.4,145.38,6.8747]
[1750911852320,38.44036739,145.41,145.38,6.8747]
[1750911852624,5.0912368,145.4,145.38,6.8747]
[1750911852823,38.44036739,145.41,145.36,10.77833757]
[1750911852824,35.04,145.41,145.39,6.8742]
[1750911854127,35.04,145.41,145.4,6.8738]
[1750911861223,3.40036739,145.47,145.43,6.8721]
[1750911861435,34.96,145.45,145.43,6.8721]
[1750911861831,34.96,145.45,145.42,15.42383757]
[1750911862020,34.96,145.45,145.42,6.8726]
[1750911862733,34.96,145.45,145.41,8.55123757]
[1750911862734,45.23340828,145.45,145.41,15.42433757]
[1750911862935,5.07524739,145.44,145.4,8.55123757]
[1750911863129,5.07524739,145.43,145.4,8.55123757]
[1750911863330,38.36170828,145.45,145.4,8.55123757]
[1750911863534,11.94889335,145.44,145.4,15.42483757]
[1750911863728,5.07679335,145.43,145.4,15.42483757]
[1750911863929,6.8721,145.44,145.4,15.42483757]
[1750911864129,5.07652728,145.43,145.4,15.42483757]
[1750911864426,11.30218432,145.44,145.4,15.42483757]
[1750911864626,5.07792764,145.43,145.4,15.42483757]
[1750911864826,11.30218432,145.44,145.4,15.42483757]
[1750911865035,5.07792625,145.43,145.4,15.42483757]
[1750911865235,6.8721,145.44,145.4,15.42483757]
[1750911865433,11.95208952,145.43,145.4,15.42483757]
[1750911865736,6.8724,145.43,145.4,15.42483757]
[1750911865935,5.07942325,145.42,145.39,15.42523757]
[1750911866129,6.8726,145.43,145.39,15.42523757]
[1750911866436,5.08022117,145.42,145.39,15.42523757]
[1750911866636,6.8726,145.43,145.4,6.8737]
[1750911866936,5.0802154,145.42,145.4,6.8737]
[1750911867139,5.08135147,145.41,145.4,6.8737]
[1750911867435,5.08142215,145.41,145.4,6.8737]
[1750911870735,5.08142215,145.41,145.39,15.42523757]
[1750911871034,41.8329,145.42,145.39,15.42523757]
[1750911871235,5.08158309,145.41,145.39,15.42523757]
[1750911871426,41.8329,145.42,145.39,15.42523757]
[1750911871734,5.08166846,145.41,145.39,15.42523757]
[1750911871930,41.8329,145.42,145.39,15.42523757]
[1750911872130,5.08201611,145.41,145.39,15.42523757]
[1750911872336,41.8329,145.42,145.39,15.42523757]
[1750911872634,5.0822421,145.41,145.39,15.42523757]
[1750911872834,41.8329,145.42,145.39,15.42523757]
[1750911873136,5.0822421,145.41,145.4,6.8738]
[1750911873431,5.08221853,145.41,145.4,6.8738]
[1750911873936,5.08221853,145.41,145.39,15.42523757]
[1750911874138,34.96,145.42,145.39,15.42523757]
[1750911874439,5.07776087,145.41,145.39,15.42523757]
[1750911874637,34.96,145.42,145.39,15.42523757]
[1750911874837,5.07776087,145.41,145.39,15.42523757]
[1750911875033,34.96,145.42,145.39,15.42523757]
[1750911875235,5.07805374,145.41,145.39,15.42523757]
[1750911875436,34.96,145.42,145.39,15.42523757]
[1750911875639,5.07849603,145.41,145.39,15.42523757]
[1750911875937,34.96,145.42,145.39,15.42523757]
[1750911876137,5.07887166,145.41,145.39,15.42523757]
[1750911876331,34.96,145.42,145.39,15.42523757]
[1750911876532,5.07958216,145.41,145.39,15.42523757]
[1750911876734,34.96,145.42,145.39,15.42523757]
[1750911877031,5.07958216,145.41,145.39,15.42523757]
[1750911877237,34.96,145.42,145.39,15.42523757]
[1750911877431,5.0810393,145.41,145.39,15.42523757]
[1750911877634,34.96,145.42,145.39,15.42523757]
[1750911877832,5.0810396,145.41,145.39,15.42523757]
[1750911878033,34.96,145.42,145.39,15.42523757]
[1750911878234,5.08119207,145.41,145.39,15.42523757]
[1750911878436,41.8329,145.42,145.39,15.42523757]
[1750911878639,5.08028977,145.41,145.39,15.42523757]
[1750911878836,41.8329,145.42,145.39,15.42523757]
[1750911879043,5.08028977,145.41,145.39,15.42523757]
[1750911879341,41.8329,145.42,145.39,15.42523757]
[1750911879545,5.0804899,145.41,145.39,15.42523757]
[1750911879840,41.8329,145.42,145.39,15.42523757]
[1750911880042,5.07538003,145.41,145.39,6.874]
[1750911880341,5.07538003,145.41,145.38,15.42583757]
[1750911880342,5.07538003,145.4,145.38,15.42583757]
[1750911880550,5.07507365,145.39,145.37,8.55123757]
[1750911880843,4.42162031,145.41,145.37,8.55123757]
[1750911881043,6.8746,145.39,145.37,8.55123757]
[1750911881244,5.07408359,145.38,145.36,8.55123757]
[1750911881447,7.82373193,145.41,145.36,8.55123757]
[1750911881653,6.875,145.38,145.36,8.55123757]
[1750911881836,41.835,145.38,145.36,8.55123757]
[1750911882147,41.835,145.38,145.35,15.42713757]
[1750911884544,41.835,145.38,145.35,8.55123757]
[1750911885346,34.96,145.38,145.35,8.55123757]
[1750911886035,3.40409715,145.42,145.36,8.55123757]
[1750911886238,13.7389,145.5,145.37,8.55123757]
[1750911886239,40.00330279,145.41,145.37,8.55123757]
[1750911886442,34.96,145.42,145.37,8.55123757]
[1750911886746,5.04316387,145.41,145.37,8.55123757]
[1750911886944,34.96,145.42,145.37,8.55123757]
[1750911887247,5.04316387,145.41,145.38,6.8744]
[1750911887449,34.96,145.42,145.38,6.8744]
[1750911887647,5.04303552,145.41,145.38,6.8744]
[1750911887849,41.8331,145.42,145.38,6.8744]
[1750911888043,5.04275277,145.41,145.38,6.8744]
[1750911888250,41.8331,145.42,145.38,6.8744]
[1750911888445,5.04264091,145.41,145.38,6.8744]
[1750911888647,46.23594936,145.42,145.38,6.8744]
[1750911888842,5.04264091,145.41,145.38,6.8744]
[1750911889151,46.23594936,145.42,145.38,6.8744]
[1750911889349,11.92680471,145.41,145.38,6.8744]
[1750911889544,6.8733,145.41,145.38,6.8744]
[1750911891751,46.23585273,145.42,145.38,6.8744]
[1750911891953,5.05637504,145.41,145.38,6.8744]
[1750911892152,46.23585273,145.42,145.39,6.8742]
[1750911892453,5.05644771,145.41,145.39,6.8742]
[1750911892745,34.96,145.42,145.38,8.55123757]
[1750911892950,34.96,145.42,145.39,8.55123757]
[1750911893346,34.96,145.42,145.4,6.8735]
[1750911898054,34.96,145.42,145.4,15.42473757]
[1750911898752,34.96,145.42,145.41,8.55123757]
[1750911900856,34.96,145.42,145.4,8.55123757]
[1750911901060,34.96,145.42,145.39,8.55123757]
[1750911902555,34.96,145.42,145.38,133.55123757]
[1750911902861,5.08246674,145.41,145.38,133.55123757]
[1750911903053,6.8736,145.41,145.38,125.0]
[1750911903361,6.8736,145.41,145.38,133.55123757]
[1750911903859,6.8736,145.41,145.38,140.42583757]
[1750911904061,34.96,145.42,145.38,133.55123757]
[1750911904266,34.96,145.42,145.41,6.8733]
[1750911904454,39.34680484,145.45,145.41,6.8733]
[1750911904653,39.34680484,145.45,145.4,8.55123757]
[1750911904654,11.9549943,145.44,145.4,8.55123757]
[1750911904862,39.34680484,145.45,145.4,15.42463757]
[1750911905055,5.0829957,145.44,145.4,15.42463757]
[1750911905357,5.08254868,145.43,145.4,8.55123757]
[1750911905551,7.82955296,145.44,145.39,15.42513757]
[1750911905756,5.08228084,145.43,145.39,8.55123757]
[1750911906059,14.70175296,145.44,145.39,8.55123757]
[1750911906259,5.08198455,145.43,145.39,8.55123757]
[1750911906458,14.70175296,145.44,145.39,8.55123757]
[1750911906657,5.08271086,145.43,145.39,8.55123757]
[1750911906853,14.70175296,145.44,145.4,6.8735]
[1750911907063,5.08270797,145.43,145.39,8.55123757]
[1750911907263,5.08270797,145.42,145.39,8.55123757]
[1750911907460,10.27573014,145.44,145.39,15.42513757]
[1750911907761,5.08345078,145.43,145.39,8.55123757]
[1750911907961,34.92,145.45,145.4,15.42483757]
[1750911908363,9.49069889,145.44,145.4,6.8736]
[1750911908559,5.07319871,145.43,145.4,6.8736]
[1750911909260,6.8721,145.44,145.4,6.8736]
[1750911909463,11.9451969,145.43,145.39,15.42523757]
[1750911909665,6.8724,145.43,145.39,15.42523757]
[1750911909865,4.41714771,145.44,145.39,8.55123757]
[1750911910166,5.0722705,145.43,145.4,6.8735]
[1750911910468,45.19458851,145.45,145.4,6.8735]
[1750911910662,5.0709644,145.44,145.4,6.8735]
[1750911910860,5.0709644,145.43,145.4,6.8735]
[1750911911063,38.32288851,145.45,145.4,6.8735]
[1750911911368,38.32288851,145.45,145.39,15.42543757]
[1750911911369,9.48837927,145.44,145.39,15.42543757]
[1750911911564,38.32288851,145.45,145.39,6.8742]
[1750911911565,44.40837927,145.43,145.39,6.8742]
[1750911911760,5.07190699,145.42,145.39,6.8742]
[1750911911961,45.19548851,145.43,145.39,6.8742]
[1750911912161,5.07165203,145.42,145.39,6.8742]
[1750911912361,45.19548851,145.43,145.39,6.8742]
[1750911912656,5.07166717,145.42,145.39,6.8742]
[1750911912861,45.19548851,145.43,145.39,6.8742]
[1750911913063,5.07166717,145.42,145.39,6.8742]
[1750911913360,45.19548851,145.43,145.39,6.8742]
[1750911913559,5.07167461,145.42,145.39,6.8742]
[1750911913764,45.19548851,145.43,145.39,6.8742]
[1750911913968,5.07167461,145.42,145.39,6.8742]
[1750911914161,45.19548851,145.43,145.39,6.8742]
[1750911914367,5.07150342,145.42,145.39,6.8742]
[1750911914570,45.19548851,145.43,145.39,6.8742]
[1750911914770,5.07168777,145.42,145.39,6.8742]
[1750911914960,45.19548851,145.43,145.39,6.8742]
[1750911915160,5.07204589,145.42,145.39,6.8742]
[1750911915463,5.07204589,145.42,145.38,8.55123757]
[1750911915464,6.8728,145.42,145.38,15.42573757]
[1750911917772,11.94541084,145.41,145.37,15.42623757]
[1750911917973,8.47603609,145.4,145.37,8.55123757]
[1750911918175,39.99211084,145.39,145.35,8.55123757]
[1750911918376,34.92,145.39,145.36,8.55123757]
[1750911919382,41.7943,145.39,145.36,8.55123757]
[1750911923385,41.7943,145.39,145.35,6.8758]
[1750911923386,41.7943,145.39,145.35,15.42703757]
[1750911926570,34.92,145.39,145.35,15.42703757]
[1750911928282,34.92,145.39,145.36,6.8756]
[1750911928486,34.92,145.39,145.35,8.55123757]
[1750911929186,34.92,145.39,145.36,6.8753]
[1750911930686,34.92,145.39,145.37,6.8751]
[1750911930882,34.92,145.39,145.37,8.55123757]
[1750911931184,34.92,145.39,145.37,15.42623757]
[1750911931391,34.92,145.39,145.37,6.875]
[1750911932184,34.92,145.39,145.36,15.42683757]
[1750911933184,34.92,145.39,145.36,8.55123757]
[1750911937489,34.92,145.39,145.36,15.42683757]
[1750911937690,34.92,145.39,145.36,8.55123757]
[1750911937995,34.92,145.39,145.36,15.42663757]
[1750911938695,34.92,145.39,145.37,6.875]
[1750911939192,34.92,145.39,145.38,6.8747]
[1750911940793,5.03258538,145.42,145.38,6.8747]
[1750911940994,34.9,145.41,145.38,6.8747]
[1750911941903,17.37299937,145.43,145.38,6.8747]
[1750911942100,39.93284217,145.42,145.38,6.8747]
[1750911942397,34.9,145.42,145.38,6.8747]
[1750911943401,41.7729,145.42,145.37,15.42623757]
[1750911943602,5.03379624,145.41,145.37,15.42623757]
[1750911943803,5.03379624,145.4,145.37,6.875]
[1750911944004,11.28606052,145.41,145.36,15.42673757]
[1750911944204,5.03355703,145.4,145.36,15.42673757]
[1750911944505,5.03455099,145.39,145.35,8.55123757]
[1750911944694,34.9,145.38,145.35,8.55123757]
[1750911946608,5.0403836,145.37,145.33,8.55123757]
[1750911946810,3.40379937,145.37,145.33,8.55123757]
[1750911947313,3.40379937,145.35,145.31,8.55123757]
[1750911947508,3.40379937,145.35,145.3,8.55123757]
[1750911947509,39.94079449,145.34,145.3,8.55123757]
[1750911947808,6.8776,145.32,145.29,8.55123757]
[1750911948009,6.8776,145.32,145.28,8.55123757]
[1750911948808,3.40379937,145.33,145.28,15.43053757]
[1750911949212,3.40379937,145.33,145.29,6.8789]
[1750911949508,34.9,145.34,145.27,8.55123757]
[1750911949704,34.9,145.34,145.29,6.8786]
[1750911950008,34.9,145.34,145.29,8.55123757]
[1750911950206,34.9,145.34,145.29,13.40693757]
[1750911950607,34.9,145.34,145.33,6.8771]
[1750911953108,38.26379937,145.37,145.33,6.8771]
[1750911954108,38.26379937,145.37,145.34,6.8766]
[1750911954505,34.86,145.37,145.34,6.8766]
[1750911959815,34.86,145.37,145.35,6.876]
[1750911962719,34.86,145.37,145.34,6.8764]
[1750911963222,34.86,145.37,145.35,6.8761]
[1750911964022,34.86,145.39,145.35,8.55123757]
[1750911964520,34.86,145.39,145.35,6.8759]
[1750911965018,34.86,145.39,145.34,8.55123757]
[1750911965222,34.86,145.39,145.37,6.8751]
[1750911965416,34.86,145.39,145.34,8.55123757]
[1750911966720,34.86,145.39,145.36,6.8755]
[1750911967323,45.13809937,145.39,145.35,6.876]
[1750911967713,38.26379937,145.39,145.35,6.876]
[1750911967911,34.86,145.39,145.35,6.876]
[1750911968113,34.86,145.39,145.36,6.8756]
[1750911969220,38.26379937,145.39,145.35,6.876]
[1750911970120,45.13839937,145.39,145.35,6.876]
[1750911970922,38.26379937,145.39,145.36,6.8756]
[1750911971125,34.86,145.39,145.34,8.55123757]
[1750911971515,34.86,145.39,145.33,8.55123757]
[1750911972718,41.7342,145.39,145.35,6.876]
[1750911973627,34.86,145.39,145.36,6.8756]
[1750911974523,41.7343,145.39,145.35,6.8759]
[1750911975423,34.86,145.39,145.36,6.8756]
[1750911980928,41.7342,145.39,145.35,6.8759]
[1750911982431,41.7342,145.39,145.34,8.55123757]
[1750911982432,6.8747,145.38,145.34,15.42763757]
[1750911987937,6.8747,145.38,145.35,6.8761]
[1750911989539,6.8747,145.38,145.35,15.42733757]
[1750911990344,9.05401945,145.38,145.35,6.8761]
[1750911991741,9.05401945,145.38,145.34,15.42763757]
[1750911993140,9.05401945,145.38,145.35,6.8761]
[1750911993341,5.05180737,145.37,145.35,6.8761]
[1750911993640,2.17931945,145.38,145.35,6.8761]
[1750911993837,5.05180737,145.37,145.35,6.8761]
[1750911994037,2.17931945,145.38,145.35,6.8761]
[1750911994347,5.05180737,145.37,145.35,15.42733757]
[1750911994540,2.17931945,145.38,145.35,15.42733757]
[1750911994734,5.05535419,145.37,145.35,15.42733757]
[1750911994946,2.17931945,145.38,145.35,15.42733757]
[1750911995136,5.05592342,145.37,145.35,15.42733757]
[1750911995336,2.17931945,145.38,145.35,15.42733757]
[1750911995539,5.05785372,145.37,145.35,15.42733757]
[1750911995839,2.17931945,145.38,145.35,15.42733757]
[1750911996038,5.05785372,145.37,145.35,8.55123757]
[1750911996240,9.05421945,145.38,145.35,8.55123757]
[1750911996439,5.05897258,145.37,145.35,8.55123757]
[1750911996742,9.05421945,145.38,145.35,8.55123757]
[1750911996944,39.89897544,145.37,145.35,8.55123757]
[1750911997131,34.84,145.37,145.35,15.00617581]
[1750911998046,34.84,145.37,145.36,6.8757]
[1750911998843,39.25985495,145.4,145.38,6.8747]
[1750911999044,9.3168194,145.39,145.37,8.58215656]
[1750911999244,34.84,145.4,145.37,8.58215656]
[1750911999454,9.3166756,145.39,145.37,15.45695656]
[1750911999742,34.84,145.4,145.37,8.58215656]
[1750911999944,9.31667548,145.39,145.37,8.58215656]
[1750912000144,34.84,145.4,145.37,10.76147601]
[1750912000345,4.89119976,145.39,145.37,10.76147601]
[1750912000541,34.84,145.4,145.38,10.76147601]
[1750912000747,34.82,145.42,145.39,6.8743]
[1750912000950,9.3139597,145.41,145.39,6.8743]
[1750912001143,4.89247746,145.4,145.38,17.63587601]
[1750912001449,43.87221945,145.42,145.38,15.45655656]
[1750912001655,11.49148308,145.41,145.38,15.45655656]
[1750912001847,4.89154854,145.4,145.38,15.45655656]
[1750912002051,2.17931945,145.41,145.38,15.45655656]
[1750912003051,4.90785009,145.4,145.38,15.45655656]
[1750912003250,2.17931945,145.41,145.38,15.45655656]
[1750912004454,2.17931945,145.41,145.39,6.8742]
[1750912005454,36.99931945,145.42,145.38,10.76147601]
[1750912005752,34.82,145.42,145.39,2.17931945]
[1750912006055,34.82,145.42,145.4,8.58215656]
[1750912006538,34.82,145.42,145.4,6.8735]
[1750912007041,34.82,145.42,145.39,8.58215656]
[1750912007242,34.82,145.42,145.41,6.8733]
[1750912008954,41.90849472,145.42,145.39,8.58215656]
[1750912009249,36.99759773,145.42,145.38,10.75975429]
[1750912010239,36.99759773,145.42,145.39,6.874]
[1750912011252,43.87059773,145.42,145.39,6.874]
[1750912011454,43.87059773,145.42,145.38,8.58215656]
[1750912011455,7.08558791,145.41,145.38,6.8745]
[1750912011748,2.17759773,145.4,145.36,138.32955656]
[1750912012353,2.17759773,145.4,145.37,6.8749]
[1750912013256,2.17759773,145.39,145.37,6.8749]
[1750912014357,6.8739,145.4,145.37,6.8749]
[1750912014552,6.8739,145.4,145.36,15.45765656]
[1750912014759,15.18890609,145.39,145.36,6.8755]
[1750912015050,39.68987846,145.38,145.34,8.58215656]
[1750912015258,34.78,145.38,145.34,8.58215656]
[1750912015557,41.6547,145.38,145.35,6.8761]
[1750912016754,34.78,145.38,145.35,6.8761]
[1750912017252,34.78,145.38,145.36,6.8755]
[1750912017468,34.78,145.38,145.34,8.58215656]
[1750912018049,34.78,145.38,145.37,6.8752]
[1750912020257,39.66907569,145.38,145.34,8.58215656]
[1750912020463,34.78,145.38,145.34,8.58215656]
[1750912021457,41.6548,145.38,145.35,6.8759]
[1750912022960,34.78,145.38,145.35,6.8759]
[1750912023857,34.78,145.38,145.36,6.8755]
[1750912025959,34.78,145.38,145.35,6.8759]
[1750912028354,34.78,145.38,145.36,6.8757]
[1750912033164,34.78,145.38,145.34,8.58215656]
[1750912033165,34.78,145.38,145.37,6.8753]
[1750912035082,34.78,145.38,145.36,6.8756]
[1750912036266,36.95922178,145.38,145.36,6.8756]
[1750912038863,36.95922178,145.38,145.35,6.876]
[1750912039166,2.17922178,145.37,145.35,6.876]
[1750912041772,2.17964623,145.37,145.35,6.876]
[1750912044474,34.78,145.38,145.35,6.876]
[1750912044775,36.95964623,145.38,145.35,15.45815656]